bitfinex/quotes_SOLUSD_20250310
["timestamp","ask_amount","ask_price","bid_price","bid_amount"]
[1741610747871,37.33323928,129.51,129.46,1.5955]
[1741610748075,37.33323928,129.51,129.46,38.92873928]
[1741610748380,126.15403928,129.52,129.47,37.33323928]
[1741610748758,126.15403928,129.52,129.46,38.92873928]
[1741610749174,81.1,129.52,129.47,37.33323928]
[1741610749373,37.33323928,129.51,129.46,1.5955]
[1741610749584,37.33323928,129.51,129.46,38.92873928]
[1741610749755,45.05503928,129.51,129.46,38.92873928]
[1741610749955,37.33323928,129.5,129.45,20.0]
[1741610750166,37.33323928,129.49,129.45,20.0]
[1741610750345,118.43323928,129.49,129.45,20.0]
[1741610750549,81.1,129.49,129.45,20.0]
[1741610751671,126.15593928,129.49,129.44,0.063]
[1741610751879,37.33323928,129.47,129.44,0.063]
[1741610752055,37.33323928,129.48,129.44,0.063]
[1741610752580,126.15593928,129.49,129.44,0.063]
[1741610752947,37.33323928,129.46,129.44,0.063]
[1741610753168,81.1,129.46,129.44,0.063]
[1741610753366,18.933972,129.45,129.44,0.063]
[1741610753546,56.26721128,129.45,129.44,0.063]
[1741610755086,81.1,129.45,129.44,0.063]
[1741610755557,81.1,129.48,129.44,37.39623928]
[1741610756349,81.1,129.48,129.44,23.39850074]
[1741610757271,81.1,129.48,129.45,23.33550074]
[1741610757678,81.1,129.48,129.46,23.33550074]
[1741610757845,81.1,129.51,129.47,23.33550074]
[1741610758049,81.1,129.51,129.46,31.05980074]
[1741610758457,23.33550074,129.49,129.44,31.18090074]
[1741610758650,23.33550074,129.49,129.44,24.94390074]
[1741610759274,81.1,129.48,129.44,24.94390074]
[1741610759583,23.33550074,129.46,129.44,0.063]
[1741610759783,104.43550074,129.46,129.44,0.063]
[1741610759960,23.33550074,129.45,129.44,0.063]
[1741610760283,112.16040074,129.45,129.44,0.063]
[1741610760888,131.09437274,129.45,129.44,0.063]
[1741610761682,123.36947274,129.45,129.44,0.063]
[1741610762262,131.09437274,129.45,129.44,0.063]
[1741610762962,123.36947274,129.45,129.44,0.063]
[1741610763166,81.1,129.45,129.44,0.063]
[1741610763793,104.43550074,129.45,129.44,0.063]
[1741610764460,112.16040074,129.45,129.44,0.063]
[1741610764661,81.1,129.45,129.44,0.063]
[1741610765356,104.43550074,129.45,129.44,0.063]
[1741610765555,112.16040074,129.45,129.44,0.063]
[1741610766075,81.1,129.45,129.44,0.063]
[1741610766465,112.16040074,129.45,129.44,0.063]
[1741610767090,81.1,129.45,129.44,0.063]
[1741610768291,104.43550074,129.5,129.44,23.39850074]
[1741610768494,81.1,129.5,129.46,23.33550074]
[1741610769889,88.822,129.5,129.44,6.3995]
[1741610770065,23.33550074,129.49,129.44,6.3995]
[1741610770279,23.33550074,129.48,129.44,0.063]
[1741610770579,81.1,129.5,129.44,23.39850074]
[1741610770760,81.1,129.5,129.45,23.33550074]
[1741610770761,112.15760074,129.5,129.45,23.33550074]
[1741610770965,112.18760074,129.5,129.45,23.33550074]
[1741610771167,104.46550074,129.5,129.45,23.33550074]
[1741610771683,104.46550074,129.5,129.44,23.39850074]
[1741610771862,81.13,129.5,129.46,23.33550074]
[1741610772182,81.13,129.5,129.47,23.33550074]
[1741610772383,81.13,129.5,129.48,23.33550074]
[1741610772384,0.03,129.5,129.48,23.33550074]
[1741610772567,0.03,129.5,129.46,7.7238]
[1741610772769,0.03,129.5,129.46,43.33550074]
[1741610772970,0.03,129.5,129.46,20.0]
[1741610773171,0.03,129.5,129.46,43.33550074]
[1741610774281,23.36550074,129.5,129.44,23.39850074]
[1741610774483,81.1,129.49,129.44,0.063]
[1741610774684,81.1,129.49,129.44,23.39850074]
[1741610774890,81.1,129.49,129.45,23.33550074]
[1741610775282,81.1,129.49,129.46,23.33550074]
[1741610775483,81.1,129.49,129.45,23.33550074]
[1741610776687,81.1,129.49,129.45,31.06040074]
[1741610777068,104.43550074,129.49,129.44,23.39850074]
[1741610777291,81.1,129.49,129.45,23.33550074]
[1741610778192,81.1,129.49,129.46,23.33550074]
[1741610778782,81.1,129.49,129.45,23.33550074]
[1741610778986,123.36947274,129.48,129.44,0.063]
[1741610779191,23.33550074,129.47,129.44,0.063]
[1741610779374,81.1,129.47,129.44,0.063]
[1741610780596,23.33550074,129.45,129.44,0.063]
[1741610781296,31.06040074,129.45,129.44,0.063]
[1741610782096,23.33550074,129.45,129.44,0.063]
[1741610782490,99.89181043,129.46,129.44,0.063]
[1741610782798,130.95181117,129.46,129.44,0.063]
[1741610784779,23.33550074,129.45,129.44,0.063]
[1741610785100,130.95181117,129.46,129.44,0.063]
[1741610786399,42.26947274,129.45,129.44,0.063]
[1741610786583,145.39437274,129.45,129.44,0.063]
[1741610786784,147.00527274,129.45,129.44,0.063]
[1741610787286,145.39437274,129.45,129.44,0.063]
[1741610787696,137.66947274,129.45,129.44,0.063]
[1741610787996,145.39437274,129.45,129.44,0.063]
[1741610789182,81.1,129.45,129.44,0.063]
[1741610790197,112.16040074,129.45,129.44,0.063]
[1741610790598,131.09437274,129.45,129.44,0.063]
[1741610791300,123.36947274,129.45,129.44,0.063]
[1741610791680,131.09437274,129.45,129.44,0.063]
[1741610792502,100.033972,129.45,129.44,0.063]
[1741610792704,81.1,129.45,129.44,0.063]
[1741610793208,81.1,129.45,129.44,23.39850074]
[1741610793576,81.1,129.45,129.44,0.063]
[1741610793776,95.4,129.47,129.44,0.063]
[1741610794014,95.4,129.47,129.44,23.39850074]
[1741610794517,81.1,129.47,129.44,23.39850074]
[1741610794718,118.76550074,129.5,129.44,31.12360074]
[1741610795006,118.76550074,129.5,129.46,23.33550074]
[1741610795007,81.13,129.5,129.46,23.33550074]
[1741610795380,81.13,129.5,129.45,23.33550074]
[1741610796787,81.13,129.5,129.45,31.06000074]
[1741610797112,81.13,129.5,129.46,1.6483]
[1741610797606,81.13,129.5,129.46,24.98380074]
[1741610798816,23.33550074,129.49,129.46,1.6483]
[1741610799105,23.33550074,129.49,129.44,0.063]
[1741610799311,81.13,129.5,129.45,23.33550074]
[1741610800108,81.13,129.5,129.46,23.33550074]
[1741610800512,81.13,129.5,129.45,23.33550074]
[1741610801091,81.13,129.5,129.45,31.06020074]
[1741610802305,81.13,129.5,129.44,23.39850074]
[1741610802306,112.18760074,129.5,129.44,23.39850074]
[1741610802510,112.18760074,129.5,129.44,31.12380074]
[1741610802710,112.18760074,129.5,129.44,23.39850074]
[1741610802914,112.18760074,129.5,129.44,31.12390074]
[1741610803721,123.36947274,129.49,129.44,0.063]
[1741610803921,23.33550074,129.48,129.44,0.063]
[1741610804493,123.36947274,129.49,129.44,0.063]
[1741610804999,123.36947274,129.49,129.44,7.7885]
[1741610805199,131.09207274,129.49,129.44,7.7885]
[1741610805401,123.36947274,129.49,129.44,7.7885]
[1741610806220,81.1,129.48,129.44,31.12400074]
[1741610806908,81.1,129.48,129.44,7.7885]
[1741610808332,81.1,129.48,129.44,31.12400074]
[1741610808937,81.1,129.48,129.45,23.33550074]
[1741610809231,81.1,129.48,129.46,23.33550074]
[1741610809831,81.13,129.5,129.47,23.33550074]
[1741610810731,81.13,129.5,129.46,23.33550074]
[1741610810934,81.13,129.5,129.44,0.063]
[1741610810940,23.33550074,129.47,129.44,0.063]
[1741610811095,81.1,129.49,129.44,0.063]
[1741610811299,112.15810074,129.49,129.44,0.063]
[1741610812216,81.1,129.49,129.44,0.063]
[1741610812417,81.1,129.49,129.44,23.39850074]
[1741610812821,81.1,129.49,129.46,23.33550074]
[1741610813027,0.03,129.5,129.47,23.33550074]
[1741610813399,0.03,129.5,129.46,43.33550074]
[1741610813810,0.03,129.5,129.47,23.33550074]
[1741610814307,0.03,129.5,129.48,7.7232]
[1741610815016,0.03,129.5,129.47,23.33550074]
[1741610815215,0.03,129.5,129.47,31.05920074]
[1741610818033,0.03,129.5,129.49,23.33550074]
[1741610818253,0.03,129.5,129.49,24.86440074]
[1741610819319,0.03,129.5,129.49,32.58700074]
[1741610820229,0.03,129.5,129.49,38.80456425]
[1741610820424,0.03,129.52,129.51,20.0]
[1741610820759,0.03,129.52,129.49,21.5289]
[1741610820956,0.03,129.52,129.49,52.58680074]
[1741610821127,0.03,129.52,129.5,23.33550074]
[1741610821325,0.03,129.52,129.51,23.33550074]
[1741610821617,0.03,129.52,129.51,31.05690074]
[1741610824234,0.03,129.52,129.51,37.26980074]
[1741610825034,0.0001,129.52,129.51,37.55412388]
[1741610825337,0.0001,129.52,129.51,37.26980074]
[1741610826130,0.0001,129.52,129.5,7.7217]
[1741610826554,0.0001,129.52,129.5,31.05720074]
[1741610826857,0.0001,129.52,129.47,13.8763]
[1741610826858,23.33560074,129.52,129.47,13.8763]
[1741610827060,123.0851496,129.51,129.47,7.7236]
[1741610827350,123.0851496,129.51,129.46,32.58560074]
[1741610827560,104.43550074,129.51,129.46,31.05980074]
[1741610828261,81.1,129.51,129.48,23.33550074]
[1741610828439,81.1,129.51,129.46,7.7243]
[1741610828636,81.1,129.51,129.49,23.33550074]
[1741610828950,81.1,129.51,129.48,23.33550074]
[1741610829160,81.1,129.51,129.47,23.33550074]
[1741610829346,81.1,129.51,129.46,7.7243]
[1741610829347,104.43550074,129.51,129.46,31.05980074]
[1741610829532,112.15690074,129.51,129.46,31.05980074]
[1741610829857,104.43550074,129.5,129.45,7.7248]
[1741610830155,81.1,129.5,129.46,23.39850074]
[1741610830758,81.1,129.5,129.46,0.063]
[1741610830948,104.43550074,129.5,129.46,0.063]
[1741610831141,81.1,129.5,129.46,0.063]
[1741610831454,81.1,129.5,129.46,23.39850074]
[1741610831864,81.1,129.5,129.47,23.33550074]
[1741610832239,23.33560074,129.52,129.48,7.7232]
[1741610832436,0.0001,129.52,129.49,23.33550074]
[1741610832642,0.0001,129.52,129.48,31.05870074]
[1741610833130,0.0001,129.52,129.48,27.0312]
[1741610833331,0.0001,129.52,129.49,23.33550074]
[1741610833538,0.0001,129.52,129.51,23.33550074]
[1741610834345,0.0001,129.52,129.51,31.05690074]
[1741610837056,0.0001,129.52,129.5,31.05730074]
[1741610837561,0.0001,129.52,129.51,23.33550074]
[1741610838349,0.0001,129.52,129.51,31.05690074]
[1741610838552,0.0001,129.52,129.51,7.7214]
[1741610838765,0.0001,129.52,129.51,31.05690074]
[1741610839145,0.0001,129.52,129.5,7.7217]
[1741610839759,23.33560074,129.52,129.47,7.7237]
[1741610840055,104.43550074,129.51,129.46,7.7871]
[1741610840361,81.1,129.51,129.46,31.12260074]
[1741610840949,112.15690074,129.51,129.46,7.7871]
[1741610841146,104.43550074,129.51,129.46,7.7871]
[1741610841377,23.33550074,129.5,129.46,0.063]
[1741610841664,23.33550074,129.49,129.46,0.063]
[1741610841858,81.1,129.5,129.46,0.063]
[1741610841859,23.33550074,129.48,129.46,0.063]
[1741610842855,41.9851496,129.49,129.46,0.063]
[1741610843054,23.33550074,129.48,129.46,0.063]
[1741610843655,123.0851496,129.49,129.46,0.063]
[1741610843859,81.1,129.49,129.46,0.063]
[1741610844068,81.1,129.49,129.46,23.39850074]
[1741610844264,81.1,129.49,129.47,23.33550074]
[1741610844476,56.2852496,129.52,129.48,7.7232]
[1741610844477,123.0852496,129.52,129.48,7.7232]
[1741610844847,81.1001,129.52,129.48,31.05870074]
[1741610845354,81.1001,129.52,129.48,7.7232]
[1741610845544,112.15640074,129.52,129.48,7.7232]
[1741610845969,23.33550074,129.51,129.47,7.7236]
[1741610846352,31.05700074,129.51,129.46,31.12260074]
[1741610846551,7.7215,129.51,129.46,7.7871]
[1741610846782,23.33550074,129.48,129.46,0.063]
[1741610847285,23.33550074,129.47,129.46,0.063]
[1741610847651,41.9851496,129.47,129.46,0.063]
[1741610848474,49.7088496,129.47,129.46,0.063]
[1741610849981,41.9851496,129.47,129.46,0.063]
[1741610850670,49.7088496,129.47,129.46,0.063]
[1741610851047,49.99317274,129.47,129.46,0.063]
[1741610851252,64.29317274,129.47,129.46,0.063]
[1741610852048,64.29317274,129.47,129.46,0.0001]
[1741610852282,18.933972,129.46,129.44,0.063]
[1741610852487,41.9851496,129.45,129.44,0.063]
[1741610852652,64.29437274,129.45,129.44,0.063]
[1741610853377,49.99437274,129.45,129.44,0.063]
[1741610853585,49.99437274,129.45,129.42,0.063]
[1741610853586,92.12397348,129.43,129.42,0.063]
[1741610853796,92.12397348,129.43,129.4,0.063]
[1741610853797,18.933972,129.42,129.4,0.063]
[1741610853995,56.56947274,129.41,129.4,0.063]
[1741610855669,64.29677274,129.41,129.4,0.063]
[1741610858185,18.933972,129.38,129.37,0.063]
[1741610858385,42.26947274,129.38,129.37,0.063]
[1741610859266,49.99857274,129.38,129.37,0.063]
[1741610860666,18.933972,129.38,129.37,0.063]
[1741610860865,42.26947274,129.38,129.37,0.063]
[1741610861074,49.99857274,129.38,129.37,0.063]
[1741610864288,73.33407348,129.38,129.37,0.063]
[1741610864468,79.52817348,129.38,129.37,0.063]
[1741610864790,20.28432314,129.35,129.34,0.063]
[1741610864988,20.28432314,129.35,129.33,0.063]
[1741610864989,18.933972,129.34,129.33,0.063]
[1741610865288,42.26947274,129.34,129.33,0.063]
[1741610865876,50.00097274,129.34,129.33,0.063]
[1741610866468,50.00097274,129.34,129.31,0.063]
[1741610866469,38.933972,129.32,129.31,0.063]
[1741610866700,62.26947274,129.32,129.31,0.063]
[1741610866917,18.933972,129.31,129.25,0.063]
[1741610867202,42.26947274,129.26,129.25,0.063]
[1741610868077,50.00577274,129.26,129.25,0.063]
[1741610868278,42.26947274,129.26,129.25,0.063]
[1741610871081,21.9347,129.29,129.25,0.063]
[1741610871082,23.33550074,129.28,129.25,0.063]
[1741610871395,32.84964886,129.29,129.25,0.063]
[1741610871396,23.33550074,129.29,129.25,1.7111]
[1741610871909,23.33550074,129.26,129.25,0.063]
[1741610872098,42.26947274,129.26,129.25,0.063]
[1741610873706,50.00577274,129.26,129.25,0.063]
[1741610875401,42.26947274,129.26,129.25,0.063]
[1741610876699,14.2,129.27,129.25,0.063]
[1741610877090,95.3,129.27,129.25,0.063]
[1741610877293,104.43550074,129.28,129.25,0.063]
[1741610877692,81.1,129.28,129.25,0.063]
[1741610878019,104.43550074,129.28,129.25,0.063]
[1741610879495,81.1,129.28,129.25,0.063]
[1741610880586,81.1,129.3,129.25,23.39850074]
[1741610880900,37.59850074,129.31,129.25,23.39850074]
[1741610881198,37.59850074,129.31,129.26,50.41260074]
[1741610881503,0.063,129.31,129.26,27.0771]
[1741610881703,0.063,129.31,129.29,8.086]
[1741610882009,0.063,129.31,129.29,31.42150074]
[1741610882307,0.063,129.31,129.3,23.33550074]
[1741610882495,23.33550074,129.37,129.3,23.33550074]
[1741610882697,104.43550074,129.37,129.32,23.33550074]
[1741610882889,23.33550074,129.36,129.31,23.33550074]
[1741610883086,23.33550074,129.36,129.3,23.33550074]
[1741610883305,23.33550074,129.36,129.31,7.7333]
[1741610883306,23.33550074,129.35,129.31,7.7333]
[1741610883508,42.26947274,129.36,129.31,31.06880074]
[1741610883713,23.33550074,129.36,129.31,31.06880074]
[1741610883905,81.1,129.37,129.32,23.33550074]
[1741610883906,104.43550074,129.37,129.32,23.33550074]
[1741610884107,81.1,129.38,129.33,23.33550074]
[1741610884304,221.85550074,129.39,129.33,23.33550074]
[1741610884500,23.33550074,129.38,129.32,23.33550074]
[1741610884903,23.33550074,129.37,129.32,23.33550074]
[1741610885422,23.33550074,129.37,129.33,7.7321]
[1741610885592,23.33550074,129.38,129.33,7.7321]
[1741610885792,23.33550074,129.38,129.33,31.06760074]
[1741610887818,31.06470074,129.38,129.33,7.7321]
[1741610888911,112.16470074,129.38,129.33,7.7321]
[1741610889321,42.26947274,129.37,129.32,7.7324]
[1741610889617,23.33550074,129.34,129.3,7.7339]
[1741610889916,23.33550074,129.31,129.29,1.6157]
[1741610891307,23.33550074,129.31,129.28,0.03]
[1741610891503,81.1,129.3,129.28,0.03]
[1741610891712,104.43550074,129.3,129.28,0.03]
[1741610893320,81.1,129.3,129.28,0.03]
[1741610893715,104.43550074,129.3,129.28,0.03]
[1741610894218,104.43550074,129.29,129.28,0.03]
[1741610894418,123.36947274,129.29,129.28,0.03]
[1741610894802,42.26947274,129.29,129.28,0.03]
[1741610895409,50.00397274,129.29,129.28,0.03]
[1741610895603,42.26947274,129.29,129.28,0.03]
[1741610895802,37.53550074,129.3,129.28,0.03]
[1741610896027,42.26947274,129.29,129.28,0.03]
[1741610897425,50.00397274,129.29,129.28,0.03]
[1741610898125,69.34027274,129.29,129.25,0.063]
[1741610898437,42.26947274,129.26,129.25,0.063]
[1741610899500,50.00577274,129.26,129.25,0.063]
[1741610900023,23.33550074,129.27,129.25,0.063]
[1741610900333,23.33550074,129.26,129.25,0.063]
[1741610901299,42.26947274,129.26,129.25,0.063]
[1741610901504,50.00577274,129.26,129.25,0.063]
[1741610904002,18.933972,129.25,129.24,0.03]
[1741610904334,93.9444453,129.25,129.24,0.03]
[1741610904645,93.9444453,129.25,129.24,0.0001]
[1741610905121,0.28432314,129.23,129.21,0.03]
[1741610905323,137.53920865,129.22,129.21,0.03]
[1741610905528,145.27790865,129.22,129.21,0.03]
[1741610905830,137.53920865,129.22,129.21,0.03]
[1741610906038,145.27790865,129.22,129.21,0.03]
[1741610908036,137.53920865,129.22,129.21,0.03]
[1741610908633,81.1,129.22,129.21,0.03]
[1741610908838,100.033972,129.22,129.21,0.03]
[1741610909041,137.53920865,129.22,129.21,0.03]
[1741610909349,56.43920865,129.22,129.21,0.03]
[1741610909557,64.17790865,129.22,129.21,0.03]
[1741610909713,56.43920865,129.22,129.21,0.03]
[1741610910746,18.933972,129.22,129.21,0.03]
[1741610910944,64.17790865,129.22,129.21,0.03]
[1741610911635,56.43920865,129.22,129.21,0.03]
[1741610912245,64.17790865,129.22,129.21,0.03]
[1741610914837,0.28432314,129.2,129.16,0.03]
[1741610916456,37.50523665,129.18,129.16,0.03]
[1741610917426,56.43920865,129.17,129.16,0.03]
[1741610917848,18.933972,129.17,129.16,0.03]
[1741610918552,51.70523665,129.18,129.16,0.03]
[1741610918748,14.2,129.18,129.16,0.03]
[1741610918922,59.44633665,129.18,129.16,0.03]
[1741610919123,51.70523665,129.18,129.16,0.03]
[1741610919561,14.2,129.18,129.16,0.03]
[1741610920126,51.70523665,129.18,129.16,0.03]
[1741610920344,14.2,129.18,129.16,0.03]
[1741610921744,37.50523665,129.17,129.16,0.03]
[1741610921964,56.43920865,129.17,129.16,0.03]
[1741610922123,64.18090865,129.17,129.16,0.03]
[1741610924270,50.13326558,129.17,129.16,0.03]
[1741610927153,50.13326558,129.17,129.16,0.0001]
[1741610927353,50.13326558,129.17,129.15,0.03]
[1741610927354,18.933972,129.16,129.15,0.03]
[1741610927555,42.39156558,129.16,129.15,0.0001]
[1741610928759,50.13386558,129.16,129.15,0.0001]
[1741610929065,38.933972,129.14,129.13,0.063]
[1741610929269,62.39156558,129.14,129.13,0.063]
[1741610937750,81.037,129.12,129.11,0.03]
[1741610937951,104.49459358,129.12,129.11,0.03]
[1741610939370,23.45759358,129.12,129.11,0.03]
[1741610941675,0.14216157,129.14,129.11,0.03]
[1741610941882,184.5,129.15,129.11,23.48759358]
[1741610942050,184.5,129.15,129.12,25.03649358]
[1741610942251,184.5,129.15,129.12,1.5789]
[1741610943054,42.39156558,129.14,129.12,1.5789]
[1741610943266,23.45759358,129.13,129.11,0.03]
[1741610943668,18.933972,129.14,129.11,0.03]
[1741610944374,42.39156558,129.14,129.11,0.03]
[1741610944657,18.933972,129.12,129.11,0.03]
[1741610944882,56.49156558,129.12,129.11,0.03]
[1741610945185,42.39156558,129.12,129.11,0.03]
[1741610946272,18.933972,129.12,129.11,0.03]
[1741610947789,42.39156558,129.12,129.11,0.03]
[1741610948077,18.933972,129.12,129.11,0.03]
[1741610950162,42.39156558,129.12,129.11,0.03]
[1741610952677,50.13626558,129.12,129.11,0.03]
[1741610953082,73.59385916,129.12,129.11,0.03]
[1741610953253,0.28432314,129.1,129.08,0.03]
[1741610953461,42.39156558,129.09,129.08,0.03]
[1741610954786,50.13806558,129.09,129.08,0.03]
[1741610955098,0.14216157,129.13,129.09,1.6467]
[1741610955273,0.28432314,129.1,129.09,1.6467]
[1741610955592,23.74191672,129.1,129.08,0.03]
[1741610955962,23.45759358,129.12,129.08,0.03]
[1741610956290,7.7435,129.14,129.09,23.45759358]
[1741610956291,0.14216157,129.13,129.09,23.45759358]
[1741610956462,0.14216157,129.13,129.08,6.4399]
[1741610956663,18.79181043,129.12,129.08,29.89749358]
[1741610956865,18.79181043,129.1,129.08,0.03]
[1741610957083,81.1,129.09,129.08,7.777]
[1741610957281,81.1,129.09,129.08,0.03]
[1741610957583,42.39156558,129.09,129.08,0.03]
[1741610957785,18.933972,129.09,129.08,0.03]
[1741610958174,42.39156558,129.09,129.08,0.03]
[1741610959066,50.13806558,129.09,129.08,0.03]
[1741610961289,42.39156558,129.09,129.08,0.03]
[1741610961700,50.13806558,129.09,129.08,0.03]
[1741610963569,0.28432314,129.05,129.04,0.03]
[1741610963773,42.39156558,129.05,129.04,0.03]
[1741610965090,50.14046558,129.05,129.04,0.03]
[1741610965790,42.39156558,129.05,129.04,0.03]
[1741610966002,50.14046558,129.05,129.04,0.03]
[1741610968096,50.14046558,129.05,129.03,0.03]
[1741610968273,42.39156558,129.04,129.03,0.03]
[1741610968475,42.39156558,129.04,129.0,0.03]
[1741610968476,20.28432314,129.01,129.0,0.03]
[1741610968676,62.39156558,129.01,129.0,0.03]
[1741610969388,70.14286558,129.01,129.0,0.03]
[1741610970396,93.60045916,129.01,129.0,0.03]
[1741610971199,99.85992334,129.01,129.0,0.03]
[1741610971581,93.60045916,129.01,129.0,0.03]
[1741610971880,62.39156558,129.01,129.0,0.03]
[1741610972282,18.933972,129.01,129.0,0.03]
[1741610972613,42.39156558,129.01,129.0,0.03]
[1741610972772,18.933972,129.01,129.0,0.03]
[1741610972978,42.39156558,129.01,129.0,0.03]
[1741610973496,18.933972,129.01,129.0,0.03]
[1741610973706,42.39156558,129.01,129.0,0.03]
[1741610974197,50.14286558,129.01,129.0,0.03]
[1741610974898,73.60045916,129.01,129.0,0.03]
[1741610975405,75.60045916,129.01,129.0,0.03]
[1741610976100,100.003972,128.99,128.98,0.03]
[1741610976304,123.46156558,128.99,128.98,0.03]
[1741610977191,100.003972,128.99,128.98,0.03]
[1741610977597,18.933972,128.99,128.98,0.03]
[1741610978385,42.39156558,128.99,128.98,0.03]
[1741610978604,18.933972,128.99,128.98,0.03]
[1741610983289,14.1,129.0,128.98,23.48759358]
[1741610984196,14.1,129.0,128.99,7.7525]
[1741610984379,14.1,129.02,128.99,31.21009358]
[1741610984580,14.1,129.02,129.0,23.45759358]
[1741610985109,81.1,129.01,129.0,23.45759358]
[1741610985707,0.063,129.03,129.0,23.45759358]
[1741610986010,0.063,129.03,129.02,29.96949358]
[1741610986190,0.063,129.03,129.02,37.72019358]
[1741610987507,81.1,129.07,129.02,37.72019358]
[1741610988003,18.933972,129.06,129.02,37.72019358]
[1741610988704,81.1,129.05,129.02,29.96949358]
[1741610988904,81.1,129.05,129.02,14.2624]
[1741610989208,81.1,129.05,129.02,37.71999358]
[1741610990114,81.1,129.05,129.03,23.45759358]
[1741610990313,81.1,129.05,129.02,37.71999358]
[1741610991004,81.1,129.05,129.02,29.96949358]
[1741610991324,81.1,129.05,129.02,6.5119]
[1741610991913,88.849,129.05,129.02,6.5119]
[1741610992293,18.933972,129.04,129.01,1.5421]
[1741610992610,81.1,129.03,129.01,1.5421]
[1741610993199,81.1,129.03,129.01,24.99969358]
[1741610993916,81.1,129.03,129.01,1.5421]
[1741610994218,18.933972,129.02,128.98,29.94019358]
[1741610994420,81.1,129.01,128.98,29.94019358]
[1741610994912,88.8513,129.01,128.98,29.94019358]
[1741610995102,81.1,129.01,128.99,23.45759358]
[1741610995303,81.1,129.01,128.98,14.2356]
[1741610995304,81.1,129.01,129.0,23.45759358]
[1741610996396,81.1,129.01,129.0,31.20949358]
[1741610996804,81.1,129.03,129.0,31.20949358]
[1741610997006,81.1,129.03,129.01,23.45759358]
[1741610997721,81.1,129.04,129.02,24.96559358]
[1741610998498,81.1,129.04,129.03,7.7501]
[1741610999495,0.063,129.04,129.03,7.7501]
[1741610999717,0.063,129.04,129.03,31.20769358]
[1741610999905,0.063,129.04,129.03,7.7501]
[1741611000306,0.063,129.04,129.03,31.20769358]
[1741611000514,0.063,129.04,129.03,7.7501]
[1741611000722,0.063,129.04,129.02,1.538]
[1741611001525,18.996972,129.04,129.02,1.538]
[1741611001817,42.45456558,129.04,129.02,0.03]
[1741611002196,118.65759358,129.03,129.02,0.03]
[1741611002798,114.133972,129.03,129.02,0.03]
[1741611003225,50.14166558,129.03,129.02,0.03]
[1741611003635,18.933972,129.03,129.02,0.03]
[1741611004327,0.063,129.04,129.02,23.48759358]
[1741611004529,0.063,129.04,129.03,23.45759358]
[1741611004701,0.063,129.04,129.02,23.48759358]
[1741611005414,0.063,129.04,129.03,23.45759358]
[1741611005733,0.063,129.04,129.02,23.48759358]
[1741611006505,0.063,129.04,129.03,7.7501]
[1741611007006,0.063,129.04,129.02,7.7804]
[1741611007221,0.063,129.04,129.02,0.03]
[1741611007427,0.063,129.04,129.02,7.7807]
[1741611007802,81.163,129.04,129.03,23.45759358]
[1741611008134,0.063,129.04,129.03,31.11609358]
[1741611008636,0.063,129.04,129.03,38.86619358]
[1741611011232,95.2,129.08,129.03,38.86619358]
[1741611011443,95.2,129.08,129.07,23.45759358]
[1741611011444,81.1,129.08,129.07,23.45759358]
[1741611011611,95.2,129.11,129.07,23.45759358]
[1741611011809,81.1,129.11,129.09,23.45759358]
[1741611012236,0.063,129.12,129.1,25.02279358]
[1741611012413,0.063,129.12,129.11,23.45759358]
[1741611012931,0.063,129.12,129.11,31.20289358]
[1741611014434,0.063,129.12,129.11,23.45759358]
[1741611014638,0.063,129.12,129.11,31.20289358]